bitfinex-derivatives/quotes_SOLF0:USTF0_20250202
["timestamp","ask_amount","ask_price","bid_price","bid_amount"]
[1738474735138,14.84964801,212.15,211.98,1.4734]
[1738474735531,4.7158,212.13,212.04,4.7175]
[1738474735731,14.81605096,212.15,211.95,14.81605096]
[1738474735931,3.0268,212.12,211.95,14.81605096]
[1738474736133,4.7168,212.08,212.01,4.7182]
[1738474736331,0.03555333,212.06,212.01,0.03103743]
[1738474738545,0.03555333,212.06,212.04,4.7176]
[1738474739041,0.03555333,212.06,212.01,0.03103743]
[1738474740251,4.7177,212.04,212.01,0.03103743]
[1738474740645,0.03555333,212.06,211.87,1.4335]
[1738474740843,0.03555333,212.06,211.83,1.4463]
[1738474741043,4.719,211.98,211.91,4.7205]
[1738474741342,14.81605096,212.03,211.83,1.4463]
[1738474741543,4.7195,211.96,211.88,4.7211]
[1738474741742,4.7195,211.96,211.83,1.4463]
[1738474742046,4.7195,211.96,211.92,0.03244747]
[1738474742645,1.59631001,211.97,211.82,14.81605096]
[1738474742843,1.59631001,211.97,211.82,19.53845096]
[1738474743047,1.5638,211.97,211.82,14.81605096]
[1738474743446,1.5638,211.97,211.87,4.7214]
[1738474743852,0.02986894,211.92,211.87,4.75651323]
[1738474744446,0.02986894,211.92,211.87,0.03511323]
[1738474744750,0.02986894,211.92,211.82,14.81605096]
[1738474745149,1.5638,211.97,211.82,14.81605096]
[1738474745948,0.03115779,211.92,211.87,0.03339112]
[1738474746949,4.75165779,211.92,211.87,0.03339112]
[1738474747445,1.4811,211.91,211.87,0.03339112]
[1738474749253,1.4811,211.91,211.87,4.75479112]
[1738474749455,1.4811,211.91,211.87,0.03339112]
[1738474749946,1.4811,211.91,211.87,4.75479112]
[1738474750654,1.4811,211.91,211.89,4.721]
[1738474751154,1.4811,211.91,211.87,4.75469112]
[1738474751355,1.4811,211.91,211.87,0.03339112]
[1738474754356,0.03115779,211.92,211.87,0.03339112]
[1738474754754,4.75155779,211.92,211.87,0.03339112]
[1738474754951,0.03115779,211.92,211.87,0.03339112]
[1738474755954,4.7211,211.89,211.87,0.03339112]
[1738474756151,0.03115779,211.92,211.87,0.03339112]
[1738474756760,4.75175779,211.92,211.87,0.03339112]
[1738474757562,4.7208,211.9,211.87,0.03339112]
[1738474757959,0.03115779,211.92,211.87,0.03339112]
[1738474759763,4.75165779,211.92,211.87,0.03339112]
[1738474761661,0.03115779,211.92,211.87,0.03339112]
[1738474761862,0.03115779,211.92,211.87,4.75489112]
[1738474763663,0.03115779,211.92,211.88,4.7211]
[1738474764565,0.03115779,211.92,211.91,4.7206]
[1738474765568,0.03115779,211.92,211.88,9.26330559]
[1738474766065,0.03115779,211.92,211.9,4.7207]
[1738474766265,0.03115779,211.92,211.88,9.26330559]
[1738474766968,0.03115779,211.92,211.91,4.7206]
[1738474767567,0.03115779,211.92,211.89,4.7209]
[1738474768258,0.03115779,211.92,211.9,4.7208]
[1738474768660,9.26330559,212.09,211.91,9.26330559]
[1738474768966,4.7179,212.03,211.95,13.98280559]
[1738474769463,4.7179,212.03,211.96,4.7194]
[1738474769870,1.48397667,212.01,211.96,4.75394086]
[1738474770067,0.03537667,212.01,211.96,4.75394086]
[1738474770562,0.03537667,212.01,211.96,0.03454086]
[1738474771768,3.00797667,212.01,211.96,0.03454086]
[1738474771967,4.7187,212.0,211.96,0.03454086]
[1738474772168,3.00797667,212.01,211.96,0.03454086]
[1738474772967,4.7186,212.0,211.96,0.03454086]
[1738474773476,3.00797667,212.01,211.96,0.03454086]
[1738474774471,7.72637667,212.01,211.96,0.03454086]
[1738474774871,3.00797667,212.01,211.96,0.03454086]
[1738474775069,4.7188,211.99,211.96,0.03454086]
[1738474775873,3.00797667,212.01,211.96,0.03454086]
[1738474776975,4.7191,211.98,211.96,0.03454086]
[1738474778673,4.7187,212.0,211.96,0.03454086]
[1738474778972,3.00797667,212.01,211.96,0.03454086]
[1738474779867,3.00797667,212.01,211.83,4.7223]
[1738474779868,9.26330559,211.99,211.83,4.7223]
[1738474780070,9.26330559,211.93,211.83,4.7223]
[1738474780274,9.26330559,211.93,211.79,9.26330559]
[1738474780469,4.7215,211.87,211.79,9.26330559]
[1738474780772,9.26330559,211.9,211.76,13.78810559]
[1738474780978,0.03069078,211.85,211.81,0.02974995]
[1738474782577,0.03069078,211.85,211.81,4.75254995]
[1738474782778,0.03069078,211.85,211.81,0.02974995]
[1738474785077,0.03069078,211.85,211.83,9.26330559]
[1738474785574,0.03069078,211.85,211.84,4.7221]
[1738474785878,0.03069078,211.85,211.81,0.02974995]
[1738474788884,0.03069078,211.85,211.81,4.75254995]
[1738474789890,0.03069078,211.85,211.81,0.02974995]
[1738474792386,4.75279078,211.85,211.81,0.02974995]
[1738474792587,0.03069078,211.85,211.81,0.02974995]
[1738474792791,9.26330559,211.84,211.71,9.26330559]
[1738474792990,4.7235,211.78,211.71,4.725]
[1738474794093,0.03246162,211.77,211.72,0.03083339]
[1738474795194,0.03246162,211.77,211.72,4.75563339]
[1738474795392,0.03246162,211.77,211.72,0.03083339]
[1738474796489,4.7239,211.76,211.72,0.03083339]
[1738474797790,0.03246162,211.77,211.72,0.03083339]
[1738474797995,0.03246162,211.77,211.74,9.26330559]
[1738474798498,0.03246162,211.77,211.76,4.7239]
[1738474800989,0.03246162,211.77,211.73,4.485]
[1738474801188,0.03246162,211.77,211.74,4.7244]
[1738474802701,0.03246162,211.77,211.72,0.03083339]
[1738474802898,0.03246162,211.77,211.73,4.7246]
[1738474803091,0.03246162,211.77,211.72,0.03083339]
[1738474803502,0.03246162,211.77,211.75,4.7239]
[1738474803694,14.83551046,211.9,211.72,0.03083339]
[1738474803898,14.83551046,211.9,211.72,3.0398]
[1738474804099,14.83551046,211.9,211.82,4.7224]
[1738474804302,14.83551046,211.9,211.72,3.0398]
[1738474804602,14.83551046,211.86,211.78,4.7234]
[1738474804997,0.02974615,211.84,211.8,0.03604949]
[1738474806996,4.7228,211.81,211.8,0.03604949]
[1738474807498,14.83551046,211.82,211.67,0.88060957]
[1738474807698,19.55831046,211.82,211.67,0.88060957]
[1738474807901,14.83551046,211.82,211.67,0.88060957]
[1738474808602,0.03126679,211.77,211.72,0.03236962]
[1738474809801,0.03126679,211.77,211.72,4.75696962]
[1738474811304,0.03126679,211.77,211.75,4.724]
[1738474811604,0.03126679,211.77,211.72,0.03236962]
[1738474811902,0.03126679,211.77,211.74,4.7241]
[1738474812099,0.03126679,211.77,211.72,0.03236962]
[1738474812908,4.7241,211.76,211.72,0.03236962]
[1738474813201,0.03126679,211.77,211.72,0.03236962]
[1738474813799,4.7242,211.75,211.72,0.03236962]
[1738474815105,4.7246,211.73,211.72,0.03236962]
[1738474815606,4.7252,211.71,211.63,4.7266]
[1738474815807,4.7252,211.71,211.59,55.95390474]
[1738474816398,4.7252,211.71,211.59,41.11839428]
[1738474816601,4.7252,211.71,211.62,4.7268]
[1738474816806,0.03029767,211.68,211.63,0.03570098]
[1738474817406,0.03029767,211.68,211.63,4.76250098]
[1738474817604,0.03029767,211.68,211.63,0.03570098]
[1738474818007,0.03029767,211.68,211.67,4.7259]
[1738474822815,9.28184049,211.79,211.74,4.7243]
[1738474823205,9.28184049,211.79,211.68,9.28184049]
[1738474823405,9.28184049,211.82,211.68,9.28184049]
[1738474824117,0.0358812,211.77,211.73,0.03049571]
[1738474824815,0.0358812,211.77,211.75,4.7241]
[1738474826614,0.0358812,211.77,211.76,4.7239]
[1738474826814,0.0358812,211.77,211.73,0.03049571]
[1738474827408,0.0358812,211.77,211.75,4.7241]
[1738474828316,0.0358812,211.77,211.73,0.03049571]
[1738474830517,0.0358812,211.77,211.74,4.7243]
[1738474831521,0.0358812,211.77,211.73,4.75509571]
[1738474831714,9.28184049,211.76,211.73,0.03049571]
[1738474832220,4.7241,211.75,211.73,0.03049571]
[1738474833416,0.0358812,211.77,211.73,0.03049571]
[1738474833718,0.0358812,211.77,211.73,4.75489571]
[1738474835314,0.0358812,211.77,211.73,0.03049571]
[1738474835515,0.0358812,211.77,211.75,4.724]
[1738474836016,0.0358812,211.77,211.73,0.03049571]
[1738474836520,0.0358812,211.77,211.74,4.7243]
[1738474836720,0.0358812,211.77,211.73,0.03049571]
[1738474838021,0.0358812,211.77,211.74,4.7242]
[1738474838623,0.0358812,211.77,211.73,4.75499571]
[1738474839013,0.0358812,211.77,211.73,0.03049571]
[1738474842126,9.28184049,211.76,211.73,0.03049571]
[1738474842326,4.7241,211.75,211.73,0.03049571]
[1738474842626,9.28184049,211.76,211.73,0.03049571]
[1738474842820,4.7243,211.75,211.73,0.03049571]
[1738474843025,9.28184049,211.76,211.64,0.85693075]
[1738474843223,9.28184049,211.73,211.64,0.85693075]
[1738474844026,14.00664049,211.73,211.65,4.7263]
[1738474844222,0.0323719,211.71,211.66,0.030379]
[1738474845730,4.7255,211.69,211.66,0.030379]
[1738474847126,9.28184049,211.7,211.66,0.030379]
[1738474848722,14.00714049,211.7,211.66,0.030379]
[1738474848927,9.28184049,211.7,211.66,0.030379]
[1738474850724,9.28184049,211.67,211.53,0.85797429]
[1738474850934,4.7699,211.74,211.53,0.85797429]
[1738474850935,9.28184049,211.57,211.53,0.85797429]
[1738474851133,9.28184049,211.54,211.44,129.62514489]
[1738474851429,9.28184049,211.5,211.44,129.62514489]
[1738474852127,0.03094936,211.49,211.45,0.03282028]
[1738474854929,4.936e-05,211.49,211.47,4.7304]
[1738474855134,9.28184049,211.62,211.48,9.28184049]
[1738474855331,9.28184049,211.62,211.49,1.4557]
[1738474855534,9.28184049,211.65,211.58,4.7278]
[1738474855735,9.28184049,211.65,211.51,9.28184049]
[1738474856036,9.28184049,211.68,211.54,9.28184049]
[1738474856331,0.03079407,211.6,211.57,9.28184049]
[1738474856725,9.28184049,211.71,211.57,9.28184049]
[1738474856928,0.03618896,211.61,211.57,9.28184049]
[1738474857128,9.28184049,211.71,211.57,9.28184049]
[1738474857328,0.03136638,211.61,211.57,9.28184049]
[1738474857526,9.28184049,211.71,211.57,9.28184049]
[1738474857836,0.03401193,211.66,211.62,0.03290806]
[1738474858238,0.03401193,211.66,211.62,4.75980806]
[1738474859034,9.28184049,211.65,211.62,0.03290806]
[1738474859731,0.03401193,211.66,211.62,0.03290806]
[1738474861938,0.03401193,211.66,211.62,4.75990806]
[1738474862438,0.03401193,211.66,211.62,0.03290806]
[1738474862844,14.89854666,211.66,211.62,0.03290806]
[1738474863040,4.7267,211.64,211.62,0.03290806]
[1738474863738,4.7268,211.63,211.55,4.7285]
[1738474864040,4.7268,211.63,211.49,2.9106]
[1738474864041,14.86453473,211.62,211.49,1.4557]
[1738474864345,3.1084,211.61,211.49,1.4557]
[1738474864542,3.1084,211.61,211.43,2.9681]
[1738474864747,14.86453473,211.58,211.44,1.5395]
[1738474864945,0.03093387,211.55,211.5,0.03591873]
[1738474866141,4.75973387,211.55,211.5,0.03591873]
[1738474866546,0.03093387,211.55,211.5,0.03591873]
[1738474866744,4.7288,211.54,211.5,0.03591873]
[1738474867142,4.7298,211.5,211.41,39.59870234]
[1738474867350,14.86453473,211.54,211.41,39.59870234]
[1738474867951,4.7297,211.5,211.42,4.7315]
[1738474868450,0.03409889,211.48,211.44,0.03525557]
[1738474870052,0.03409889,211.48,211.44,4.76625557]
[1738474870550,0.03409889,211.48,211.44,0.03525557]
[1738474871850,4.76429889,211.48,211.44,0.03525557]
[1738474872046,0.03409889,211.48,211.44,0.03525557]
[1738474874255,4.76429889,211.48,211.44,0.03525557]
[1738474876059,4.7304,211.47,211.44,0.03525557]
[1738474878458,0.03409889,211.48,211.44,4.76625557]
[1738474878649,0.03409889,211.48,211.44,0.03525557]
[1738474879049,14.86453473,211.58,211.5,4.7296]
[1738474879250,4.5594,211.61,211.5,4.7296]
[1738474879657,9.29777886,211.59,211.5,4.7296]
[1738474880059,4.7282,211.57,211.48,4.7299]
[1738474880358,4.7620482,211.57,211.52,0.03438925]
[1738474880861,4.7284,211.56,211.52,0.03438925]
[1738474881463,4.7288,211.54,211.52,0.03438925]
[1738474882362,0.0338482,211.57,211.52,0.03438925]
[1738474882562,4.7286,211.55,211.52,0.03438925]
[1738474882757,0.0338482,211.57,211.52,0.03438925]
[1738474883166,0.0338482,211.57,211.55,4.7286]
[1738474889074,0.0338482,211.57,211.56,4.7284]
[1738474890875,0.0338482,211.57,211.55,4.7286]
[1738474891575,0.0338482,211.57,211.52,0.03438925]
[1738474891776,0.0338482,211.57,211.56,4.7284]
[1738474892569,1.4428,211.68,211.53,1.5243]
[1738474893070,2.9512,211.71,211.54,1.5364]
[1738474893271,2.9512,211.71,211.56,14.88026679]
[1738474893667,0.03427491,211.66,211.61,0.03619118]
[1738474893872,0.03427491,211.66,211.63,4.7267]
[1738474894273,0.03427491,211.66,211.61,0.03619118]
[1738474894868,14.88026679,211.8,211.61,0.03619118]
[1738474895073,14.88026679,211.8,211.61,1.4282]
[1738474895271,14.88026679,211.76,211.61,1.4282]
[1738474895473,14.88026679,211.72,211.56,14.88026679]
[1738474895874,4.6055,211.71,211.56,14.88026679]
[1738474896187,0.03628219,211.66,211.62,0.02982122]
[1738474897077,0.03628219,211.66,211.62,4.75682122]
[1738474897776,0.03628219,211.66,211.62,0.02982122]
[1738474897977,0.03628219,211.66,211.63,4.7268]
[1738474898978,0.03628219,211.66,211.65,4.7264]
[1738474903678,0.03628219,211.66,211.65,14.0089985]
[1738474905783,6.2965,211.79,211.74,4.7242]
[1738474905982,1.5732,211.79,211.69,9.2825985]
[1738474906182,10.8557985,211.79,211.66,9.2825985]
[1738474906482,4.7243,211.75,211.69,4.7253]
[1738474906681,4.7243,211.75,211.66,9.2825985]
[1738474906877,0.03018367,211.74,211.7,0.03346919]
[1738474908078,0.03018367,211.74,211.7,4.75866919]
[1738474908683,0.03018367,211.74,211.73,4.7246]
[1738474909486,0.03018367,211.74,211.71,4.725]
[1738474910885,0.03018367,211.74,211.7,0.03346919]
[1738474911487,0.03018367,211.74,211.7,4.75866919]
[1738474911886,0.03018367,211.74,211.7,0.03346919]
[1738474912279,0.03018367,211.74,211.7,4.75866919]
[1738474913387,4.725,211.71,211.6,9.2825985]
[1738474913587,4.725,211.71,211.53,192.0]
[1738474913588,9.2825985,211.72,211.57,9.2825985]
[1738474914088,4.7253,211.7,211.62,4.727]
[1738474914283,12.2607985,211.72,211.57,9.2825985]
[1738474914788,0.03082936,211.67,211.62,0.03568716]
[1738474916187,9.2825985,211.66,211.51,9.2825985]
[1738474916790,4.727,211.62,211.54,4.7287]
[1738474916987,4.727,211.62,211.51,9.2825985]
[1738474917183,9.2825985,211.66,211.51,9.2825985]
[1738474917388,0.03310127,211.59,211.54,0.03014848]
[1738474917585,0.03310127,211.59,211.54,9.31274698]
[1738474917990,0.03310127,211.59,211.56,4.7283]
[1738474918190,0.03310127,211.59,211.54,0.03014848]
[1738474918788,0.03310127,211.59,211.55,4.7286]
[1738474918992,0.03310127,211.59,211.54,0.03014848]
[1738474919691,4.76080127,211.59,211.54,4.75894848]
[1738474920593,0.03310127,211.59,211.54,4.75894848]
[1738474920989,0.03310127,211.59,211.57,4.7281]
[1738474921193,0.03310127,211.59,211.54,9.31274698]
[1738474921793,0.03310127,211.59,211.55,4.7285]
[1738474921994,0.03310127,211.59,211.54,9.31274698]
[1738474922492,0.03310127,211.59,211.56,4.7282]
[1738474922693,0.03310127,211.59,211.54,9.31274698]
[1738474923993,0.03310127,211.59,211.55,4.7285]
[1738474924296,0.03310127,211.59,211.54,9.31274698]
[1738474924697,0.03310127,211.59,211.57,4.7281]
[1738474925496,0.03310127,211.59,211.54,9.31274698]
[1738474925797,0.03310127,211.59,211.58,4.7279]
[1738474933308,2.9782,211.72,211.57,9.2825985]
[1738474933509,2.9782,211.72,211.66,4.7259]
[1738474934101,7.7031,211.72,211.62,9.2825985]
[1738474934306,2.9782,211.72,211.62,9.2825985]
[1738474934506,0.03125493,211.69,211.65,0.03221526]
[1738474934706,0.03125493,211.69,211.66,4.7261]
[1738474936203,0.03125493,211.69,211.67,4.7259]
[1738474936407,0.03125493,211.69,211.65,0.03221526]
[1738474936804,9.31385343,211.69,211.56,9.2825985]
[1738474937007,9.2825985,211.66,211.53,9.2825985]
[1738474938005,0.03101998,211.62,211.57,0.03120273]
[1738474938808,2.95641998,211.62,211.57,0.03120273]
[1738474939005,4.7279,211.58,211.57,0.03120273]
[1738474939210,2.95641998,211.62,211.57,0.03120273]
[1738474939409,4.7275,211.6,211.57,0.03120273]
[1738474941612,7.68361998,211.62,211.57,0.03120273]
[1738474942005,1.4433,211.61,211.57,0.03120273]
[1738474943016,6.1708,211.61,211.57,0.03120273]
[1738474943219,1.4433,211.61,211.57,0.03120273]
[1738474945320,1.4433,211.61,211.57,4.75930273]
[1738474945620,1.4433,211.61,211.57,0.03120273]
[1738474946920,4.7276,211.6,211.57,0.03120273]
[1738474950024,4.7277,211.59,211.57,0.03120273]
[1738474953722,1.4433,211.61,211.57,0.03120273]
[1738474955821,4.7277,211.59,211.57,0.03120273]
[1738474956127,9.2825985,211.6,211.44,9.2825985]
[1738474956328,9.2825985,211.57,211.44,9.2825985]
[1738474956924,9.2825985,211.6,211.47,9.2825985]
[1738474957125,0.03469733,211.53,211.48,0.03184122]
[1738474957429,0.03469733,211.53,211.52,4.7293]
[1738474960028,0.03469733,211.53,211.48,0.03184122]
[1738474960430,4.76379733,211.53,211.48,0.03184122]
[1738474960622,4.76379733,211.53,211.48,4.76204122]
[1738474961023,0.03469733,211.53,211.48,0.03184122]
[1738474961228,4.7293,211.52,211.48,0.03184122]
[1738474961732,0.03469733,211.53,211.48,0.03184122]
[1738474961933,9.2825985,211.51,211.48,0.03184122]
[1738474962931,9.2825985,211.51,211.38,9.2825985]
[1738474963231,4.7297,211.5,211.38,9.2825985]
[1738474964133,0.03105582,211.46,211.42,0.03359174]
[1738474964431,0.03105582,211.46,211.44,4.7311]
[1738474965933,0.03105582,211.46,211.42,0.03359174]
[1738474966134,0.03105582,211.46,211.45,4.7308]
[1738474968933,0.03105582,211.46,211.42,4.76509174]
[1738474969134,0.03105582,211.46,211.42,0.03359174]
[1738474970937,0.03105582,211.46,211.42,4.76439174]
[1738474972737,0.03105582,211.46,211.43,4.7308]
[1738474973236,0.03105582,211.46,211.42,0.03359174]
[1738474973438,0.03105582,211.46,211.45,4.7304]
[1738474974731,9.2825985,211.57,211.5,4.7291]
[1738474974933,9.2825985,211.57,211.44,9.2825985]
[1738474975138,4.7275,211.58,211.47,9.2825985]
[1738474975334,4.7275,211.58,211.5,4.7292]
[1738474975533,4.7275,211.58,211.47,9.2825985]
[1738474975940,0.0309364,211.55,211.5,0.03070558]
[1738474976743,0.0309364,211.55,211.52,4.7286]
[1738474979039,0.0309364,211.55,211.51,4.729]
[1738474980544,0.0309364,211.55,211.5,0.03070558]
[1738474980740,0.0309364,211.55,211.52,4.7288]
[1738474981345,0.0309364,211.55,211.54,4.7284]
[1738474984346,0.0309364,211.55,211.5,0.03070558]
[1738474985748,0.0309364,211.55,211.53,4.7285]
[1738474986148,0.0309364,211.55,211.5,0.03070558]
[1738474986449,5.94984898,211.54,211.5,0.03070558]
[1738474987045,5.94984898,211.54,211.51,4.729]
[1738474987351,5.94984898,211.54,211.5,0.03070558]
[1738474987645,0.0309364,211.55,211.53,5.94984898]
[1738474987949,1.5537,211.66,211.53,5.94984898]
[1738474987950,5.94984898,211.64,211.53,5.94984898]
[1738474988150,5.94984898,211.6,211.53,5.94984898]
[1738474988451,5.94984898,211.56,211.48,5.94984898]
[1738474988849,5.94984898,211.56,211.53,4.7285]
[1738474989155,0.03250973,211.54,211.53,4.7285]
[1738474990947,5.94984898,211.62,211.52,5.94984898]
[1738474991155,5.94984898,211.62,211.56,5.94984898]
[1738474991453,5.94984898,211.62,211.58,4.7274]
[1738474991654,5.94984898,211.62,211.54,5.94984898]
[1738474991953,5.98567065,211.6,211.56,0.03374835]
[1738474993144,5.94984898,211.58,211.56,0.03374835]
[1738474993343,5.94984898,211.58,211.45,1.4365]
[1738474993544,5.94984898,211.51,211.45,1.4365]
[1738474994152,5.94984898,211.51,211.48,4.7295]
[1738474994353,5.94984898,211.53,211.48,4.7295]
[1738474994654,0.03530391,211.52,211.47,0.03085876]
[1738474994851,0.03530391,211.52,211.51,4.729]
[1738474995150,0.03530391,211.52,211.48,5.94984898]
[1738474995151,0.03530391,211.52,211.47,0.03085876]
[1738474996058,0.03530391,211.52,211.47,4.76055876]
[1738474997655,5.94984898,211.51,211.47,0.03085876]
[1738474997856,5.94984898,211.49,211.47,0.03085876]
[1738474999759,4.7297,211.48,211.47,0.03085876]
[1738475000465,5.94984898,211.49,211.34,5.94984898]
[1738475000668,5.94984898,211.41,211.34,5.94984898]
[1738475001561,0.03094844,211.4,211.35,0.03553386]
[1738475001866,0.03094844,211.4,211.39,4.7317]
[1738475003165,9.30947127,211.52,211.35,0.03553386]
[1738475003369,9.30947127,211.55,211.42,9.30947127]
[1738475004370,0.03375786,211.51,211.46,0.02999948]
[1738475006570,0.03375786,211.51,211.46,4.76009948]
[1738475006969,0.03375786,211.51,211.46,0.02999948]
[1738475007366,9.30947127,211.49,211.46,0.02999948]
[1738475008175,4.7299,211.47,211.46,0.02999948]
[1738475008670,0.03375786,211.51,211.46,0.02999948]
[1738475010776,4.76285786,211.51,211.46,0.02999948]
[1738475011075,0.03375786,211.51,211.46,0.02999948]
[1738475012779,4.76275786,211.51,211.46,0.02999948]
[1738475015276,0.03375786,211.51,211.46,0.02999948]
[1738475015781,4.7292,211.5,211.46,0.02999948]
[1738475016382,0.03375786,211.51,211.46,0.02999948]
[1738475016383,4.76275786,211.51,211.46,0.02999948]
[1738475017383,0.03375786,211.51,211.46,0.02999948]
[1738475017785,4.53185786,211.51,211.46,0.02999948]
[1738475018584,4.7297,211.49,211.46,0.02999948]
[1738475018786,4.53185786,211.51,211.46,0.02999948]
[1738475019387,4.7295,211.49,211.46,0.02999948]
[1738475021689,5.95482193,211.47,211.46,0.02999948]
[1738475021882,5.95482193,211.47,211.38,0.91697478]
[1738475022086,5.95482193,211.41,211.38,0.91697478]
[1738475026388,5.95482193,211.41,211.38,5.64877478]
[1738475026589,0.03231379,211.42,211.38,0.91697478]
[1738475027088,4.76341379,211.42,211.38,0.91697478]
[1738475028588,4.76341379,211.42,211.38,5.64887478]
[1738475029986,0.03231379,211.42,211.41,4.7313]
[1738475030191,0.03231379,211.42,211.41,10.68612193]
[1738475034791,5.95482193,211.49,211.41,5.95482193]
[1738475034992,7.40962193,211.51,211.47,4.7298]
[1738475035994,12.13872193,211.51,211.47,4.76481675]
[1738475036194,12.17166054,211.51,211.47,4.76481675]
[1738475036395,12.17166054,211.51,211.47,0.03501675]
[1738475036590,5.95482193,211.49,211.47,0.03501675]
[1738475038697,10.68432193,211.49,211.47,0.03501675]
[1738475039201,4.7297,211.48,211.47,0.03501675]
[1738475039597,5.95482193,211.49,211.38,0.91697478]
[1738475039807,5.95482193,211.43,211.4,4.7313]
[1738475043100,5.95482193,211.43,211.39,4.76570081]
[1738475045800,4.7315,211.4,211.39,0.03400081]
[1738475046002,5.95482193,211.41,211.27,5.95482193]
[1738475046205,5.95482193,211.35,211.27,5.95482193]
[1738475046508,5.95482193,211.31,211.26,129.62514489]
[1738475047004,5.95482193,211.29,211.26,129.62514489]
[1738475047709,5.95482193,211.29,211.25,4.76578405]
[1738475047907,0.03567188,211.3,211.25,0.03108405]
[1738475048810,5.95482193,211.29,211.25,0.03108405]
[1738475049705,5.95482193,211.27,211.25,0.03108405]
[1738475050808,10.68922193,211.27,211.25,0.03108405]
[1738475051209,5.95482193,211.27,211.25,0.03108405]
[1738475062022,10.68932193,211.27,211.25,0.03108405]
[1738475062217,10.68932193,211.27,211.15,5.95482193]
[1738475062218,5.95482193,211.27,211.15,5.95482193]
[1738475062522,5.95482193,211.2,211.15,4.7371]
[1738475062821,5.95482193,211.18,211.15,4.7371]
[1738475063220,5.95482193,211.18,211.14,4.7373]
[1738475063417,5.95482193,211.18,211.14,4.77089601]
[1738475063921,5.95482193,211.18,211.14,0.03359601]
[1738475064120,0.03634843,211.19,211.15,5.95482193]
[1738475065223,5.95482193,211.18,211.14,0.03359601]
[1738475067229,5.95482193,211.18,211.14,4.77079601]
[1738475067629,5.95482193,211.18,211.14,0.03359601]
[1738475068427,10.69122193,211.18,211.14,4.77089601]
[1738475068832,5.95482193,211.18,211.14,4.77089601]
[1738475069434,0.03634843,211.19,211.14,0.03359601]
[1738475069632,0.03634843,211.19,211.17,5.95482193]
[1738475070032,0.03634843,211.19,211.18,4.7364]
[1738475073336,0.03634843,211.19,211.17,4.7365]
[1738475073538,0.03634843,211.19,211.14,0.03359601]
[1738475075037,5.95482193,211.18,211.14,0.03359601]
[1738475075538,4.7371,211.15,211.14,0.03359601]
[1738475075728,5.95482193,211.16,211.02,7.27200257]
[1738475075932,5.95482193,211.1,211.02,7.27200257]
[1738475076829,5.95482193,211.1,211.06,4.739]
[1738475077031,0.03142617,211.08,211.06,4.739]
[1738475077231,0.03142617,211.08,211.02,7.27200257]
[1738475077840,0.03142617,211.08,211.02,1.31718064]
[1738475078743,0.03142617,211.08,211.05,4.7393]
[1738475078940,0.03142617,211.08,211.02,1.31718064]
[1738475079345,0.03142617,211.08,211.06,4.7391]
[1738475080447,0.03142617,211.08,211.03,9.33550733]
[1738475080739,0.03142617,211.08,211.07,4.7389]
[1738475082039,9.33550733,211.17,211.03,9.33550733]
[1738475082242,9.33550733,211.26,211.1,9.33550733]
[1738475082449,9.33550733,211.26,211.13,9.33550733]
[1738475083343,0.03408022,211.22,211.17,0.03456817]
[1738475083849,0.03408022,211.22,211.2,4.7359]
[1738475089248,0.03408022,211.22,211.21,4.7357]
[1738475089450,8.022e-05,211.22,211.21,4.7357]
[1738475097655,8.022e-05,211.22,211.21,10.70071657]
[1738475101658,8.022e-05,211.22,211.21,4.7357]
[1738475104960,8.022e-05,211.22,211.21,10.70071657]
[1738475107463,5.96501657,211.37,211.21,5.96501657]
[1738475107764,12.21459841,211.4,211.27,9.31219841]
[1738475108363,10.85629841,211.46,211.3,9.31219841]
[1738475108565,9.31219841,211.43,211.3,9.31219841]
[1738475108766,1.5441,211.46,211.36,0.03592791]
[1738475108767,9.34761797,211.4,211.36,0.03592791]
[1738475109065,9.34761797,211.4,211.23,46.02228507]
[1738475109066,9.31219841,211.37,211.23,46.02228507]
[1738475109365,9.31219841,211.31,211.18,9.31219841]
[1738475110163,0.03329672,211.27,211.22,0.03416186]
[1738475110765,0.03329672,211.27,211.26,4.7346]
[1738475111061,0.03329672,211.27,211.22,0.03416186]
[1738475112063,9.672e-05,211.27,211.25,4.7348]
[1738475114766,9.672e-05,211.27,211.26,4.7346]
[1738475115668,2.9526,211.39,211.24,9.31219841]
[1738475115972,2.9526,211.39,211.37,4.732]
[1738475116370,2.9526,211.39,211.28,9.31219841]
[1738475116569,2.9526,211.39,211.37,4.732]
[1738475117567,0.03087141,211.4,211.36,0.03476126]
[1738475117774,0.03087141,211.4,211.39,4.7317]
[1738475119873,7.141e-05,211.4,211.39,4.7317]
[1738475125067,7.141e-05,211.4,211.37,4.732]
[1738475125475,4.73177141,211.4,211.36,0.03476126]
[1738475125678,7.141e-05,211.4,211.36,0.03476126]
[1738475126176,9.31226982,211.4,211.25,9.31219841]
[1738475126377,9.31219841,211.37,211.22,52.07507771]